Cogmind - Beta 16 @@@ ROGUE MODE // 2025.12.12 @ 20:30:57 Player: Oneirical Result: Destroyed by A3-FNA(R) with Subdweller Machine Gun Performance ------------- Evolutions (0) 0 Regions Visited (2) 400 Robots Destroyed (17) 85 Value Destroyed (330) 330 Prototype IDs (2) 40 Alien Tech Used (0) 0 Bonus (-25) -25 TOTAL SCORE: 830 Bonus ------- Friendly Fire -25 Cogmind --------- Core Integrity 0/250 Matter 300/300 Energy 100/100 System Corruption 0% Temperature Warm (161) Movement Core (50) Location -10/Subcaves Parts ------- > --- POWER (1) -------- (None) > --- PROPULSION (2) --- (None) > --- UTILITY (2) ------ (None) > --- WEAPON (2) ------- (None) > --- INVENTORY (5) ---- Power Bank Assault Rifle Light Assault Rifle Multitool Peak State ------------ > --- POWER ------------ Ion Engine > --- PROPULSION ------- Light Treads Light Treads > --- UTILITY ---------- Scrap Shield > --- WEAPON ----------- Subdweller Machine Gun Subdweller Machine Gun > --- INVENTORY -------- Improved Terrain Scanner Power Bank Assault Rifle Light Assault Rifle Mining Laser [Rating: 12] Favorites ----------- Power Ion Engine Engine Ion Engine Propulsion Light Treads Treads Light Treads Wheel Compact Wheel Utility Seismic Detector Device Seismic Detector Storage Small Storage Unit Protection Scrap Shield Weapon Assault Rifle Energy Gun Medium Laser Ballistic Gun Assault Rifle Special Weapon Mining Laser Build | -11 -10 -10 ------- Run | Yrd Mat Sub Slots Evolved . | . . . Power . | . . . Propulsion . | . . . Utility . | . . . Weapon . | . . . Parts Attached 18 | 9 6 3 Power 1 | 1 . . Engine 1 | 1 . . Core . | . . . Reactor . | . . . Propulsion 3 | 3 . . Treads 2 | 2 . . Leg . | . . . Wheel 1 | 1 . . Hover . | . . . Flight . | . . . Utility 6 | 2 3 1 Device 2 | 1 1 . Storage 2 | 1 1 . Processor . | . . . Hackware . | . . . Protection 2 | . 1 1 Artifact . | . . . Weapon 8 | 3 3 2 Energy Gun 2 | 2 . . Energy Cannon . | . . . Ballistic Gun 5 | 1 2 2 Ballistic Cannon . | . . . Launcher . | . . . Special Weapon 1 | . 1 . Impact Weapon . | . . . Slashing Weapon . | . . . Piercing Weapon . | . . . Special Melee Weapon . | . . . Unidentified Prototypes . | . . . Parts Lost 4 | . . 4 Power 1 | . . 1 Propulsion 2 | . . 2 Utility 1 | . . 1 Weapon . | . . . Highest Loss Streak 4 | . . 4 To Critical Strikes . | . . . Average Backups 6 | 4 8 5 Power . | . . . Propulsion 1 | 1 1 . Utility 2 | 1 4 1 Weapon 1 | . 2 2 Tool/Special . | . . . Unused Backups 16 | . 3 13 Power 1 | . 1 . Propulsion 1 | . 1 . Utility 9 | . 1 8 Weapon 4 | . . 4 Tool/Special 1 | . . 1 Average Slot Usage (%) 96 | . 100 85 Engine 14 | . 14 14 Treads 28 | . 28 28 Device 14 | . 18 . Storage 7 | . 9 1 Protection 3 | . . 13 Energy Gun 2 | . 3 . Ballistic Gun 22 | . 21 27 Special Weapon 2 | . 3 . Peak Build Rating 12 | 8 9 12 Average Rating 8 | 6 8 10 On Entrance 5 | . 8 9 Avg Prop Armor Cover (%) . | . . . Naked Turns 2 | . . 2 Heaviest Build 50 | 14 50 50 Greatest Support 40 | 40 40 40 Greatest Overweight (x) 4 | 4 1 1 Average Overweight (x) . | . . . Largest Inventory Capacity 20 | 8 20 20 Average Capacity 8 | 7 10 5 Most Carried 16 | 8 16 16 Average Carried 6 | 5 8 5 Final Capacity 20 | 8 20 5 Final Carried 16 | 8 16 4 Class Distribution -------------------- 88% | Mutant 11% | Subdweller-Mutant Dominant Class ---------------- Mutant | -10/Materials Subdweller-Mutant | -10/Subcaves Resources | -11 -10 -10 ----------- Run | Yrd Mat Sub Matter Collected 669 | 353 144 172 Remotely . | . . . Salvage Created 471 | 127 144 200 Parts 33 | 14 8 11 Haulers Intercepted . | . . . Recyclers Shooed . | . . . Parts Field Recycled . | . . . Retrieved Matter . | . . . Parts Self-Destructed 17 | . . 17 Prevented . | . . . Parts Restored . | . . . Kills | -11 -10 -10 ------- Run | Yrd Mat Sub Combat Hostiles Destroyed 10 | . 5 5 Guns 10 | . 5 5 Classes Destroyed 5 | 1 2 2 Tunneler 7 | 7 . . Swarmer 4 | . 3 1 Grunt 2 | . 2 . Artisan 1 | . . 1 Subdweller 4 | . . 4 Best Kill Streak 3 | 2 3 2 Combat Bots Only 3 | . 3 2 Max Kills in Single Turn 1 | 1 1 1 Gunslinging . | . . . Exploded . | . . . Melee . | . . . Uniques/NPCs Destroyed . | . . . Combat | -11 -10 -10 -------- Run | Yrd Mat Sub Hostile Shots Fired 89 | . 28 61 Missed 23 | . 7 16 Hits 66 | . 21 45 Projectile 66 | . 21 45 Critical Strikes 1 | . . 1 Damage Taken 1136 | . 220 916 Core 270 | . 33 237 Absorbed by Shields . | . . . Core Remaining (%) 100 | 100 . . Volleys Fired 77 | 23 27 27 Largest 2 | 2 2 2 Hottest 100 | 70 100 60 Shots Fired 142 | 46 42 54 Gun 131 | 46 31 54 Cannon . | . . . Launcher . | . . . Special 11 | . 11 . Kinetic 107 | 23 30 54 Thermal 35 | 23 12 . Explosive . | . . . Electromagnetic . | . . . Robot Hit Streak 12 | 8 7 12 Robot Miss Streak 3 | 3 1 3 Penetration Max . | . . . Secondary Targets 3 | . . 3 Max Gunslinging Chain 1 | . . 1 Shots Hit Robots 90 | 30 24 36 Core Hits 30 | 10 8 12 Critical Kills . | . . . Critical Parts Destroyed . | . . . Critical Strikes 3 | 2 . 1 Burn 2 | 2 . . Destroy 1 | . . 1 Melee Attacks . | . . . Impact . | . . . Slashing . | . . . Piercing . | . . . Sneak Attacks . | . . . Combat Hostiles . | . . . Follow-up Attacks . | . . . Damage Inflicted 1306 | 316 293 697 Guns 1302 | 316 292 694 Cannons . | . . . Explosions . | . . . Melee . | . . . Ramming 4 | . 1 3 Kinetic 1089 | 116 279 694 Thermal 213 | 200 13 . Explosive . | . . . Electromagnetic . | . . . Impact . | . . . Slashing . | . . . Piercing . | . . . Highest Corruption . | . . . Average Corruption . | . . . Corruption Purged . | . . . Corruption Blocked . | . . . Overload Shots . | . . . Overflow Damage . | . . . Projectiles . | . . . Explosions . | . . . Melee . | . . . Knockbacks . | . . . Impact . | . . . Kinetic . | . . . Secondary . | . . . Self-Inflicted Damage 1 | . . 1 Shots . | . . . Rammed 2 | . 1 1 Targets Rammed 2 | . 1 1 Kicked . | . . . Crushed . | . . . Highest Temperature 295 | 60 60 295 Average Temperature 31 | 23 17 238 Received Heat Transfer 495 | . 96 399 Siege Activations . | . . . Martial Activations . | . . . Shielding Activations . | . . . Robots Disrupted . | . . . Combat Hostiles . | . . . Robots Corrupted . | . . . Combat Hostiles . | . . . Parts Fried . | . . . Impact Corruptions . | . . . Robots Melted . | . . . Combat Hostiles . | . . . Parts Melted . | . . . Heat Transferred 777 | 740 37 . Parts Sabotaged . | . . . Parts Stolen . | . . . Parts Stripped . | . . . Power Chain Reactions . | . . . Alert | -11 -10 -10 ------- Run | Yrd Mat Sub Maximum Alert Level . | . . . Low Security (%) 100 | 100 100 . Level 1 . | . . . Level 2 . | . . . Level 3 . | . . . Level 4 . | . . . Level 5 . | . . . High Security . | . . . Max Security . | . . . Peak Influence 81 | 5 81 . Initial . | . . . Average 9 | . 13 . Influence Increases 217 | 35 162 20 Destroy 0b10 Robot/C 120 | . 100 20 Destroy 0b10 Robot/NC 35 | 35 . . Destroy Leader 20 | . 20 . Successful Hack 17 | . 17 . Destroy Structure 10 | . 10 . Lose Combat Pursuer 15 | . 15 . Influence Decreases 217 | 35 162 20 Time Decay 217 | 35 162 20 Squads Dispatched 1 | . 1 . Investigation . | . . . Extermination . | . . . Reinforcement 1 | . 1 . Assault . | . . . Garrison . | . . . Intercept . | . . . Searches Triggered . | . . . Construction Impeded . | . . . Haulers Reinforced . | . . . Active Scanning Responses . | . . . Cargo Convoy Interrupts . | . . . Stealth | -11 -10 -10 --------- Run | Yrd Mat Sub Distress Signals 1 | . 1 . Communications Jammed . | . . . Distress Signals . | . . . Times Spotted 25 | . 8 17 Peak Tracking Total 9 | . 4 9 Tactical Retreats 1 | . 1 . Traps | -11 -10 -10 ------- Run | Yrd Mat Sub Traps Triggered . | . . . Indirectly . | . . . Trap Hack Attempts . | . . . Triggered . | . . . Disarmed . | . . . Reprogrammed . | . . . Reused . | . . . Traps Extracted . | . . . Installed . | . . . Triggered . | . . . Machines | -11 -10 -10 ---------- Run | Yrd Mat Sub Machines Disabled . | . . . Max in Single Turn . | . . . Machines Repaired . | . . . Machines Dismantled . | . . . Machines Sabotaged . | . . . Overloaded Fab Kills . | . . . Hacking | -11 -10 -10 --------- Run | Yrd Mat Sub Machines Accessed 4 | . 4 . Terminals 3 | . 3 . Fabricators . | . . . Repair Stations . | . . . Recycling Units 1 | . 1 . Scanalyzers . | . . . Garrison Access . | . . . Total Hacks 13 | . 13 . Successful 6 | . 6 . Failed 7 | . 7 . Catastrophic . | . . . Database Lockouts . | . . . Manual 6 | . 6 . Terminals 9 | . 9 . Fabricators . | . . . Repair Stations . | . . . Recycling Units 4 | . 4 . Scanalyzers . | . . . Garrison Access . | . . . Terminal Hacks 5 | . 5 . Robot Analysis 1 | . 1 . Prototype ID Bank 1 | . 1 . Branch Access Points 1 | . 1 . Locate Traps 2 | . 2 . Fabricator Hacks . | . . . Repair Station Hacks . | . . . Recycling Unit Hacks 1 | . 1 . Retrieve Components 1 | . 1 . Scanalyzer . | . . . Garrison Access Hacks . | . . . Unauthorized Hacks . | . . . Terminals . | . . . Fabricators . | . . . Repair Stations . | . . . Recycling Units . | . . . Scanalyzers . | . . . Garrison Access . | . . . Data Cores Recovered . | . . . Used . | . . . Hacking Detections 4 | . 4 . Full Trace Events . | . . . Feedback Events . | . . . Feedback Blocked . | . . . Robot Schematics Acquired . | . . . Robots Built . | . . . Authchips . | . . . Time . | . . . Total Robot Build Rating . | . . . Part Schematics Acquired . | . . . Parts Built . | . . . Authchips . | . . . Time . | . . . Total Part Build Rating . | . . . Part Studies Acquired . | . . . Parts Repaired . | . . . Time . | . . . Parts Recycled . | . . . Recycled Matter . | . . . Retrieved Matter . | . . . Retrieved Components 9 | . 9 . Parts Scanalyzed . | . . . Part Schematics Acquired . | . . . Parts Damaged . | . . . Bothacking | -11 -10 -10 ------------ Run | Yrd Mat Sub Used RIF Installer . | . . . Robots Hacked . | . . . Non-combat . | . . . Combat . | . . . Robot Hacks Applied . | . . . Relay Couplers Released . | . . . Fabnet Peak Effective % . | . . . Robots Rewired . | . . . Allies Hacked . | . . . Hacks Repelled . | . . . Allies | -11 -10 -10 -------- Run | Yrd Mat Sub Total Allies . | . . . Largest Group . | . . . Highest-Rated Group . | . . . Highest-Rated Ally . | . . . Total Orders . | . . . Ally Attacks . | . . . Total Damage . | . . . Kills . | . . . Allies Corrupted . | . . . Allies Melted . | . . . Intel | -11 -10 -10 ------- Run | Yrd Mat Sub Active Infowar (turns) 1363 | 383 980 . Terrain 334 | . 334 . Seismic 1363 | 383 980 . Robot Analysis Total 1 | . 1 . Derelict Logs Recovered . | . . . Drone Launches . | . . . Drone Recoveries . | . . . Exploration | -11 -10 -10 ------------- Run | Yrd Mat Sub Turns Passed 1774 | 515 981 278 Spaces Moved 817 | 275 446 96 Core 31 | 30 . 1 Treads 786 | 245 446 95 Legs . | . . . Wheels . | . . . Hover . | . . . Flight . | . . . Fastest Speed 50 | 50 160 50 Average Speed 167 | 153 177 161 Slowest Speed 250 | 250 240 240 Overloaded Moves . | . . . Propulsion Burnouts . | . . . Robots Hopped . | . . . Potential Cave-ins . | . . . Cave-ins Triggered . | . . . Exploration Rate (%) 29 | 19 64 6 Regions Visited 2 Branch Regions 1 Pre-discovered Areas . | . . . Known Exits Taken . | . . . Unknown Exits Taken 2 | 1 1 . Scrap Searched . | . . . Spaces Dug 10 | . 10 . Terrain Destroyed 10 | . 10 . Melee . | . . . Projectile 10 | . 10 . AOE . | . . . Terrain Rammed . | . . . Walls Destroyed . | . . . Machines Disabled . | . . . Actions | -11 -10 -10 --------- Run | Yrd Mat Sub Total 1067 | 323 570 174 Wait 83 | 2 66 15 Move 815 | 274 445 96 Hop . | . . . Pick Up 31 | 10 14 7 Fast Attach 8 | 5 1 2 Attach 3 | 3 . . Detach 2 | 1 1 . Swap 15 | 5 9 1 Drop 28 | . 6 22 Fire 77 | 23 27 27 Melee . | . . . Ram 1 | . . 1 Kick . | . . . Crush 1 | . 1 . Escape Stasis . | . . . Rewire . | . . . Trap . | . . . Miscellaneous 3 | . . 3 Route ------- -11/Scrapyard -10/Materials (discovered 4 exits: [*Mat] / Min x2 / [*Sub]) -10/Subcaves History --------- Turn | Location | Event 7 | -11/Scrapyard | Discovered new exit (range 15) 516 | -11/Scrapyard | Entered Materials 517 | -10/Materials | Build established: Mutant 550 | -10/Materials | Identified exit to Mines 985 | -10/Materials | Discovered new exit (range 16) 1467 | -10/Materials | Discovered new exit (range 13) 1497 | -10/Materials | Entered Subcaves 1547 | -10/Subcaves | A Subdweller sparked back to life 1547 | -10/Subcaves | A Subdweller sparked back to life 1547 | -10/Subcaves | A Subdweller sparked back to life 1574 | -10/Subcaves | Found Prototype Device 1722 | -10/Subcaves | Ambushed by swarm of Subdwellers 1722 | -10/Subcaves | Ambushed by Subdwellers from Twisted Machinery 1722 | -10/Subcaves | Ambushed by Subdwellers from Twisted Machinery 1768 | -10/Subcaves | Lost 4 allies 1771 | -10/Subcaves | Core integrity fell below 50% 1773 | -10/Subcaves | Released all parts (2) 1775 | -10/Subcaves | Core integrity fell below 20% 1775 | -10/Subcaves | Destroyed by A3-FNA(R) with Subdweller Machine Gun Last Messages --------------- 01722_ SK-EVM(R) knocked back. 01724_ DH-LFW(R) emerges from the Twisted Machinery. 01725_ HV Slug penetrates Twisted Machinery. 01725_ Q5-TTN(R) suffers critical hit (Destroy). 01744_ Dropped Scrap Shield Fragment. 01752_ DH-LFW(R) destroyed. 01752_ Switching to secondary target: A3-FNA(R). 01764_ JQ-5ME(R) destroyed. 01768_ Critical hit (Meltdown: +300). 01768_ Scrap Shield destroyed. 01770_ Lgt. Treads destroyed. 01770_ Ion Engine destroyed. 01772_ Lgt. Treads destroyed. 01773_ Released Sub. Machine Gun. [Achievement: Live, Flee, And Rebuild] 01773_ Slammed into 19-AHR(R). 01774_ Acquired 12 matter. 01774_ A3-FNA(R) affixes Scrap Shield Fragment to Scrap Shield. Map ----- +----------------------------------------------------+ | | | | | | | | | | | | | | | ?????????????????????????????????????????????????? | | ?????????????????????????????????????????????????? | | ?????????????????????????????????????????????????? | | ?????????????????????????????????????????????????? | | ?????????????????????????????????????????????????? | | ?????????????????????????????????????????????????? | | ?????????????????????????????????????????????????? | | ?????????????????????????????????????????????????? | | ?????????????????????????????????????????????????? | | ?????????????????????????????????????????????????? | | ?????????????????????????????????????????????????? | | ?????????????????????????????????????????????????? | | ?????????????????????????????????????????????????? | | ?????????????????????????????????????????????????? | | ?????????????????????????????????????????????????? | | ????????????????????######???#####???????????????? | | ???????????????????## RRR#?##"" #???????###?????? | | ???????????????????# R!%### = %######### ##????? | | ???????????????????## RRR@*%]""=%=! ## ## ###### | | ????????????????????# ! "!!% ! " ## | | ?????????????? """" " % | | ?????????? """" ## * %## < " | | ??????????? # ## #"# ##" %%;# " # ## | | ??????????? ?##?#### ###!=; % # ### | | ???????????" ?????????# ### ## ; =!* ##?# | | ???????????? ??????????## ?# # ##* |! #?# | | ???????????????????????? #?#"" # ## #?# | | ????????????????????????# ?# "" ?###[[ ### | | ????????????????????????# #?##"####???##! ### | | ???????????????????????? #?? "???????## ## # | | ???????????????????????? ?" ????????## %#? | | ???????????????????????? " "##?????????##% % # | | ?????????????????????????/ "#????????????## | | ???????????????????????????? ?????????????? = | | ???????????????????????????#???????????????# "#% | | ??????????????????????????????????????????? ###[ | | ??????????????????????????????????????????? ? ??? | | ????????????????????????????????????????????? ??? | | ????????????????????????????????????????????? #??? | | ?????????????????????????????????????????????????? | | ?????????????????????????????????????????????????? | | ?????????????????????????????????????????????????? | | ?????????????????????????????????????????????????? | +----------------------------------------------------+ Best States ------------- Heat Dissipation 25 Energy Generation 10 Energy Capacity 250 Matter Stores 300 Matter Capacity 300 Sight Range 16 Terrain Scan Range 16 Terrain Scan Density 10 Armor Coverage 800 Weapon Shielding 33 Evasion (%) 40 Recoil Reduction 2 Item Schematics ----------------- None Robot Schematics ------------------ None Fabricated ------------ Nothing Repaired ---------- Nothing Studied --------- None Alien Tech Used ----------------- None Achievements -------------- Art Critic DATA ERROR: Steam Global Achievement% For Emergencies Only Live, Flee, And Rebuild Organ Harvest Survival Of The Most Covered Challenges ------------ None Game ------ Seed SurgeArchitectKatana Manual? 0 Play Time 01:20:53 Cumulative 19.5 hours Start 2025.12.12 @ 17:26:52 End 2025.12.12 @ 20:30:57 Sessions 5 Manual Loads 0 Difficulty Rogue Special Mode None Game No. 28 Rogue 26 Adventurer 2 Explorer 0 Win Type - Total 0 Types 0/0/0/0/0/0/0/0/0/0 Lore% 23 Gallery% 36 Achievement% 22 Wizard Run 0 Options --------- Layout 2 ASCII 0 Keyboard 1 Movement Numpad Keybinds 0 Fullscreen 1 Font 32/SmallcapsGlow Map View 50x49 Zoom Use 0% Tactical HUD 1 Map Filters NONE Filters NONE Steam 0 RUN: 30bfa2a3-b1a3-4d34-930c-2ff27bbdfdaa